[Event "Live Chess"]
[Site "Chess.com"]
[Date "2024.06.01"]
[Round "-"]
[White "Grieve72"]
[Black "jimwad"]
[Result "1-0"]
[WhiteElo "2637"]
[BlackElo "1216"]
[TimeControl "300"]
[EndTime "9:52:43 PDT"]
[Termination "Grieve72 won by resignation"]

1. e4 {[%clk 0:04:59.7]} 1... e5 {[%clk 0:04:58.8]} 2. Nf3 {[%clk 0:04:59.1]}
2... Nc6 {[%clk 0:04:57.5]} 3. Bc4 {[%clk 0:04:58.8]} 3... Bc5 {[%clk 0:04:56]}
4. d3 {[%clk 0:04:57.7]} 4... Nf6 {[%clk 0:04:54.5]} 5. Bg5 {[%clk 0:04:57.4]}
5... h6 {[%clk 0:04:49.8]} 6. Bh4 {[%clk 0:04:56.4]} 6... g5 {[%clk 0:04:47.4]}
7. Bg3 {[%clk 0:04:55.6]} 7... d6 {[%clk 0:04:45.3]} 8. c3 {[%clk 0:04:55.2]}
8... Be6 {[%clk 0:04:37.3]} 9. Nbd2 {[%clk 0:04:53.1]} 9... Qe7 {[%clk
0:04:32.6]} 10. b4 {[%clk 0:04:51.2]} 10... Bb6 {[%clk 0:04:27]} 11. a4 {[%clk
0:04:50.9]} 11... a5 {[%clk 0:04:25.9]} 12. b5 {[%clk 0:04:50.3]} 12... Na7
{[%clk 0:04:20.5]} 13. Bxe6 {[%clk 0:04:49.4]} 13... Qxe6 {[%clk 0:04:19.3]} 14.
Nc4 {[%clk 0:04:49.3]} 14... Nd7 {[%clk 0:04:10.9]} 15. O-O {[%clk 0:04:46.6]}
15... Nc8 {[%clk 0:04:05.1]} 16. Qe2 {[%clk 0:04:45.2]} 16... O-O {[%clk
0:03:57.9]} 17. d4 {[%clk 0:04:43.5]} 17... exd4 {[%clk 0:03:56.5]} 18. Nxd4
{[%clk 0:04:42.1]} 18... Bxd4 {[%clk 0:03:54.4]} 19. cxd4 {[%clk 0:04:42]} 19...
b6 {[%clk 0:03:50.7]} 20. d5 {[%clk 0:04:39]} 20... Qg6 {[%clk 0:03:41.3]} 21.
f4 {[%clk 0:04:36.9]} 21... f5 {[%clk 0:03:34.6]} 22. fxg5 {[%clk 0:04:33.1]}
22... hxg5 {[%clk 0:03:33.5]} 23. exf5 {[%clk 0:04:32.5]} 23... Rxf5 {[%clk
0:03:26.7]} 24. Rxf5 {[%clk 0:04:32.4]} 24... Qxf5 {[%clk 0:03:25.6]} 25. Rf1
{[%clk 0:04:32.3]} 25... Qxd5 {[%clk 0:03:21]} 26. Qe8+ {[%clk 0:04:29.9]} 26...
Nf8 {[%clk 0:03:12.7]} 27. Qxf8+ {[%clk 0:04:29.2]} 1-0

[Event "Live Chess"]
[Site "Chess.com"]
[Date "2024.06.01"]
[Round "-"]
[White "peteopeteo"]
[Black "A3ndrey9"]
[Result "1-0"]
[WhiteElo "1624"]
[BlackElo "1273"]
[TimeControl "300"]
[EndTime "9:52:52 PDT"]
[Termination "peteopeteo won by resignation"]

1. e4 {[%clk 0:04:59.5]} 1... b6 {[%clk 0:04:59.2]} 2. Nf3 {[%clk 0:04:58.7]}
2... c6 {[%clk 0:04:57.5]} 3. d4 {[%clk 0:04:57.9]} 3... d5 {[%clk 0:04:56.8]}
4. exd5 {[%clk 0:04:56.5]} 4... cxd5 {[%clk 0:04:55.3]} 5. c4 {[%clk 0:04:55.9]}
5... dxc4 {[%clk 0:04:53.9]} 6. Bxc4 {[%clk 0:04:55.8]} 6... Bf5 {[%clk
0:04:51.7]} 7. Ne5 {[%clk 0:04:51.5]} 7... e6 {[%clk 0:04:50.6]} 8. Qf3 {[%clk
0:04:48.9]} 8... Nd7 {[%clk 0:04:48]} 9. Nxd7 {[%clk 0:04:45.6]} 9... Kxd7
{[%clk 0:04:47.1]} 10. Be3 {[%clk 0:04:32.9]} 10... Bb4+ {[%clk 0:04:45.5]} 11.
Nc3 {[%clk 0:04:31.6]} 11... Nf6 {[%clk 0:04:37.3]} 12. Qb7+ {[%clk 0:04:30.3]}
12... Ke8 {[%clk 0:04:31.2]} 13. O-O {[%clk 0:04:15.5]} 13... Bxc3 {[%clk
0:04:28.6]} 14. bxc3 {[%clk 0:04:14.4]} 14... Be4 {[%clk 0:04:28.1]} 15. Bb5+
{[%clk 0:04:03.4]} 15... Kf8 {[%clk 0:04:21.1]} 16. Bc6 {[%clk 0:04:02.2]} 16...
Bxc6 {[%clk 0:04:01.2]} 17. Qxc6 {[%clk 0:04:01.1]} 17... Nd5 {[%clk 0:03:47.7]}
18. Rac1 {[%clk 0:03:45.9]} 18... Rc8 {[%clk 0:03:43.4]} 19. Qb7 {[%clk
0:03:38.4]} 19... Rc7 {[%clk 0:03:34.8]} 20. Qa6 {[%clk 0:03:34.6]} 20... Rxc3
{[%clk 0:03:21.2]} 21. Rxc3 {[%clk 0:03:32.9]} 21... Nxc3 {[%clk 0:03:19.7]} 22.
Qa3+ {[%clk 0:03:32.8]} 22... Qe7 {[%clk 0:03:03.7]} 23. Qxc3 {[%clk 0:03:30.4]}
23... f6 {[%clk 0:02:53]} 24. Rc1 {[%clk 0:03:29.3]} 24... Kf7 {[%clk
0:02:51.8]} 25. Qc7 {[%clk 0:03:28.1]} 25... Re8 {[%clk 0:02:40.9]} 26. Qg3
{[%clk 0:03:08.6]} 26... f5 {[%clk 0:02:31.4]} 27. Rc7 {[%clk 0:03:07.2]} 27...
g5 {[%clk 0:02:15.4]} 28. Bxg5 {[%clk 0:03:02.9]} 28... Qxc7 {[%clk 0:02:12.5]}
29. Qxc7+ {[%clk 0:03:01.8]} 29... Kg6 {[%clk 0:02:12.2]} 30. Qg3 {[%clk
0:02:55]} 30... Rc8 {[%clk 0:02:06.4]} 31. Bf4+ {[%clk 0:02:50]} 31... Kf6
{[%clk 0:02:05.2]} 32. Qh4+ {[%clk 0:02:48.5]} 32... Kg6 {[%clk 0:02:03.6]} 33.
Qg5+ {[%clk 0:02:47.1]} 33... Kf7 {[%clk 0:02:03.2]} 34. Qh6 {[%clk 0:02:42.9]}
34... Ke7 {[%clk 0:01:54.3]} 35. Qxh7+ {[%clk 0:02:40.9]} 35... Kf6 {[%clk
0:01:52.6]} 36. Qh6+ {[%clk 0:02:38.5]} 36... Ke7 {[%clk 0:01:51.7]} 37. Be5
{[%clk 0:02:33.4]} 37... Rc2 {[%clk 0:01:43.1]} 38. Qf6+ {[%clk 0:02:26.3]}
38... Kd7 {[%clk 0:01:41.8]} 39. Qf7+ {[%clk 0:02:24.5]} 39... Kc6 {[%clk
0:01:40.4]} 40. Qc7+ {[%clk 0:02:23.7]} 40... Kd5 {[%clk 0:01:39.4]} 41. Qxc2
{[%clk 0:02:23.6]} 1-0

[Event "Live Chess"]
[Site "Chess.com"]
[Date "2024.06.01"]
[Round "-"]
[White "updatedopenings2024"]
[Black "FlyingChessKestrel13"]
[Result "1-0"]
[WhiteElo "1787"]
[BlackElo "2117"]
[TimeControl "300"]
[EndTime "9:52:55 PDT"]
[Termination "updatedopenings2024 won by resignation"]

1. e4 {[%clk 0:04:58]} 1... d6 {[%clk 0:04:56.2]} 2. d4 {[%clk 0:04:56.1]} 2...
g6 {[%clk 0:04:55.3]} 3. Nc3 {[%clk 0:04:47.4]} 3... Bg7 {[%clk 0:04:53.9]} 4.
f4 {[%clk 0:04:46.1]} 4... Nc6 {[%clk 0:04:50]} 5. Nf3 {[%clk 0:04:44.7]} 5...
e6 {[%clk 0:04:48.3]} 6. Be3 {[%clk 0:04:41.5]} 6... Nf6 {[%clk 0:04:45.3]} 7.
Qd2 {[%clk 0:04:40.1]} 7... Bd7 {[%clk 0:04:41.3]} 8. O-O-O {[%clk 0:04:39.2]}
8... Qe7 {[%clk 0:04:37.9]} 9. h3 {[%clk 0:04:38.5]} 9... O-O-O {[%clk
0:04:36.5]} 10. e5 {[%clk 0:04:37.6]} 10... dxe5 {[%clk 0:04:32.6]} 11. dxe5
{[%clk 0:04:37.5]} 11... Nh5 {[%clk 0:04:24.3]} 12. Qf2 {[%clk 0:04:36.4]} 12...
Bh6 {[%clk 0:04:21.9]} 13. g3 {[%clk 0:04:35.2]} 13... f6 {[%clk 0:04:15.3]} 14.
exf6 {[%clk 0:04:32.9]} 14... Nxf6 {[%clk 0:04:11.1]} 15. Bxa7 {[%clk
0:04:24.2]} 15... e5 {[%clk 0:04:04.7]} 16. Bc5 {[%clk 0:04:22.5]} 16... Qe6
{[%clk 0:04:00.9]} 17. Ng5 {[%clk 0:04:17.9]} 17... Bxg5 {[%clk 0:03:39.2]} 18.
fxg5 {[%clk 0:04:17.8]} 18... Nh5 {[%clk 0:03:36.5]} 19. Bg2 {[%clk 0:04:10.2]}
19... Ng7 {[%clk 0:03:14.6]} 20. g4 {[%clk 0:03:49.5]} 20... Qc4 {[%clk
0:03:02.8]} 21. Bd5 {[%clk 0:03:46.8]} 21... Qf4+ {[%clk 0:03:00.7]} 22. Qxf4
{[%clk 0:03:44.9]} 22... exf4 {[%clk 0:03:00.3]} 23. Rhf1 {[%clk 0:03:37.5]}
23... b6 {[%clk 0:02:57.9]} 24. Ba3 {[%clk 0:03:36.7]} 24... Ne6 {[%clk
0:02:51.6]} 25. Ne4 {[%clk 0:03:13.9]} 25... Ne5 {[%clk 0:02:40.9]} 26. Be7
{[%clk 0:03:00.3]} 26... Rde8 {[%clk 0:02:37.8]} 27. Bf6 {[%clk 0:02:59.2]}
27... Nf7 {[%clk 0:02:33]} 28. Bxh8 {[%clk 0:02:57.2]} 28... Rxh8 {[%clk
0:02:31.3]} 29. Nf6 {[%clk 0:02:57.1]} 29... Nc5 {[%clk 0:02:26]} 30. Nxd7
{[%clk 0:02:55.7]} 1-0

[Event "Live Chess"]
[Site "Chess.com"]
[Date "2024.06.01"]
[Round "-"]
[White "Duke_of_Bebington"]
[Black "StoreySniper"]
[Result "0-1"]
[WhiteElo "1597"]
[BlackElo "2547"]
[TimeControl "300"]
[EndTime "9:52:55 PDT"]
[Termination "StoreySniper won by resignation"]

1. e4 {[%clk 0:04:58.1]} 1... g6 {[%clk 0:04:59.2]} 2. d4 {[%clk 0:04:55.2]}
2... Bg7 {[%clk 0:04:58.8]} 3. Be3 {[%clk 0:04:54]} 3... c5 {[%clk 0:04:58.2]}
4. c3 {[%clk 0:04:50.5]} 4... cxd4 {[%clk 0:04:57.1]} 5. cxd4 {[%clk 0:04:49.4]}
5... d5 {[%clk 0:04:56.3]} 6. e5 {[%clk 0:04:47.5]} 6... Nc6 {[%clk 0:04:55.1]}
7. a3 {[%clk 0:04:45.6]} 7... Nh6 {[%clk 0:04:54.4]} 8. Bd3 {[%clk 0:04:42.6]}
8... Nf5 {[%clk 0:04:53.1]} 9. Bxf5 {[%clk 0:04:40.1]} 9... Bxf5 {[%clk
0:04:51.6]} 10. Ne2 {[%clk 0:04:39.2]} 10... Bxb1 {[%clk 0:04:44]} 11. Rxb1
{[%clk 0:04:38]} 11... e6 {[%clk 0:04:43.6]} 12. O-O {[%clk 0:04:35.7]} 12...
O-O {[%clk 0:04:42.8]} 13. Qd2 {[%clk 0:04:34.3]} 13... Qb6 {[%clk 0:04:41]} 14.
Rfd1 {[%clk 0:04:28.5]} 14... Rfc8 {[%clk 0:04:39.1]} 15. Bh6 {[%clk 0:04:26.9]}
15... Nxd4 {[%clk 0:04:25.4]} 16. Bxg7 {[%clk 0:04:15.5]} 16... Nxe2+ {[%clk
0:04:20.3]} 17. Qxe2 {[%clk 0:04:14.6]} 17... Kxg7 {[%clk 0:04:19.4]} 18. b4
{[%clk 0:04:11.3]} 18... Rc3 {[%clk 0:04:12.3]} 19. Rbc1 {[%clk 0:04:09.5]}
19... Rac8 {[%clk 0:04:10.7]} 20. Rxc3 {[%clk 0:04:06.6]} 20... Rxc3 {[%clk
0:04:10.6]} 21. Qb2 {[%clk 0:04:04.1]} 21... Qc6 {[%clk 0:04:02.2]} 22. h3
{[%clk 0:03:57.7]} 22... Qc4 {[%clk 0:03:56.1]} 23. a4 {[%clk 0:03:38.9]} 23...
d4 {[%clk 0:03:55]} 24. b5 {[%clk 0:03:37.1]} 24... d3 {[%clk 0:03:51]} 25. Rd2
{[%clk 0:03:31.3]} 25... Rc2 {[%clk 0:03:45.4]} 26. Rxc2 {[%clk 0:03:30.2]}
26... Qxc2 {[%clk 0:03:41.2]} 0-1

[Event "Live Chess"]
[Site "Chess.com"]
[Date "2024.06.01"]
[Round "-"]
[White "LaupMiths"]
[Black "Kyrylo7770"]
[Result "0-1"]
[WhiteElo "1799"]
[BlackElo "1710"]
[TimeControl "300"]
[EndTime "9:52:57 PDT"]
[Termination "Kyrylo7770 won by resignation"]

1. Nf3 {[%clk 0:04:54.4]} 1... d5 {[%clk 0:04:59]} 2. c4 {[%clk 0:04:48.4]} 2...
c6 {[%clk 0:04:57.5]} 3. b3 {[%clk 0:04:45.2]} 3... Nf6 {[%clk 0:04:56.6]} 4. e3
{[%clk 0:04:43.8]} 4... Bg4 {[%clk 0:04:55.8]} 5. Be2 {[%clk 0:04:41.8]} 5... e6
{[%clk 0:04:55.2]} 6. h3 {[%clk 0:04:40.1]} 6... Bh5 {[%clk 0:04:54.3]} 7. Bb2
{[%clk 0:04:33.3]} 7... Ne4 {[%clk 0:04:52.9]} 8. O-O {[%clk 0:04:29.4]} 8...
Bd6 {[%clk 0:04:48.6]} 9. d3 {[%clk 0:04:21.1]} 9... Bxf3 {[%clk 0:04:43.5]} 10.
dxe4 {[%clk 0:04:05]} 10... Bxe4 {[%clk 0:04:41.1]} 11. Bxg7 {[%clk 0:04:01.8]}
11... Rg8 {[%clk 0:04:40.2]} 12. Bh6 {[%clk 0:03:55.2]} 12... Qf6 {[%clk
0:04:37.7]} 13. Bf4 {[%clk 0:03:53.3]} 13... Rxg2+ {[%clk 0:04:34.2]} 0-1

[Event "Live Chess"]
[Site "Chess.com"]
[Date "2024.06.01"]
[Round "-"]
[White "Ksenia_2013"]
[Black "Dhaydon19"]
[Result "0-1"]
[WhiteElo "721"]
[BlackElo "2700"]
[TimeControl "300"]
[EndTime "9:52:58 PDT"]
[Termination "Dhaydon19 won by checkmate"]

1. e4 {[%clk 0:04:55.4]} 1... c6 {[%clk 0:04:59.6]} 2. d4 {[%clk 0:04:53.7]}
2... d5 {[%clk 0:04:58.2]} 3. e5 {[%clk 0:04:51.5]} 3... c5 {[%clk 0:04:57.3]}
4. dxc5 {[%clk 0:04:49.9]} 4... Nc6 {[%clk 0:04:55.9]} 5. Nc3 {[%clk 0:04:47.5]}
5... e6 {[%clk 0:04:54.4]} 6. Be3 {[%clk 0:04:45.7]} 6... d4 {[%clk 0:04:53.6]}
7. Ne4 {[%clk 0:04:39.5]} 7... dxe3 {[%clk 0:04:52.5]} 8. fxe3 {[%clk
0:04:36.6]} 8... Qh4+ {[%clk 0:04:48.1]} 9. g3 {[%clk 0:04:32.4]} 9... Qxe4
{[%clk 0:04:46.4]} 10. Nf3 {[%clk 0:04:26.1]} 10... Bxc5 {[%clk 0:04:45.1]} 11.
Bg2 {[%clk 0:04:23.5]} 11... Qxe3+ {[%clk 0:04:43.9]} 12. Kf1 {[%clk 0:04:19.1]}
12... Qf2# {[%clk 0:04:42.6]} 0-1

[Event "Live Chess"]
[Site "Chess.com"]
[Date "2024.06.01"]
[Round "-"]
[White "Ninifu"]
[Black "booktrunk"]
[Result "1-0"]
[WhiteElo "2069"]
[BlackElo "1386"]
[TimeControl "300"]
[EndTime "9:53:01 PDT"]
[Termination "Ninifu won by resignation"]

1. d4 {[%clk 0:04:57.1]} 1... b6 {[%clk 0:04:56.4]} 2. e4 {[%clk 0:04:51.6]}
2... Bb7 {[%clk 0:04:49.2]} 3. Bd3 {[%clk 0:04:50.8]} 3... e6 {[%clk 0:04:38.5]}
4. Nf3 {[%clk 0:04:48.3]} 4... Nf6 {[%clk 0:04:34.6]} 5. Qe2 {[%clk 0:04:46.5]}
5... h6 {[%clk 0:04:31.2]} 6. O-O {[%clk 0:04:44.8]} 6... Be7 {[%clk 0:04:24.5]}
7. Nbd2 {[%clk 0:04:44]} 7... O-O {[%clk 0:04:21.6]} 8. c4 {[%clk 0:04:37.9]}
8... c5 {[%clk 0:04:20.4]} 9. d5 {[%clk 0:04:25.5]} 9... exd5 {[%clk 0:04:16.5]}
10. cxd5 {[%clk 0:04:23.8]} 10... d6 {[%clk 0:04:11]} 11. a4 {[%clk 0:04:19.5]}
11... Qc8 {[%clk 0:04:07.8]} 12. Nc4 {[%clk 0:04:16.1]} 12... Ba6 {[%clk
0:04:03.2]} 13. h3 {[%clk 0:04:09.1]} 13... Kh8 {[%clk 0:03:53.6]} 14. Bf4
{[%clk 0:04:07.4]} 14... Ng8 {[%clk 0:03:50.3]} 15. Nxd6 {[%clk 0:03:57.8]}
15... Bxd3 {[%clk 0:03:35.1]} 16. Qxd3 {[%clk 0:03:49.6]} 16... Bxd6 {[%clk
0:03:31.8]} 17. Bxd6 {[%clk 0:03:47.5]} 17... Qd7 {[%clk 0:03:30.5]} 18. Bxf8
{[%clk 0:03:45.5]} 18... Nf6 {[%clk 0:03:14.5]} 1-0

[Event "Live Chess"]
[Site "Chess.com"]
[Date "2024.06.01"]
[Round "-"]
[White "Queensandpawns"]
[Black "NeilDruggan73"]
[Result "1-0"]
[WhiteElo "2469"]
[BlackElo "1747"]
[TimeControl "300"]
[EndTime "9:53:06 PDT"]
[Termination "Queensandpawns won by resignation"]

1. e4 {[%clk 0:04:56.2]} 1... d6 {[%clk 0:04:58.4]} 2. d4 {[%clk 0:04:54.8]}
2... Nf6 {[%clk 0:04:56.2]} 3. Be3 {[%clk 0:04:54.7]} 3... Nxe4 {[%clk
0:04:48.4]} 4. Nc3 {[%clk 0:04:54.6]} 4... Nxc3 {[%clk 0:04:45.4]} 5. bxc3
{[%clk 0:04:54.5]} 5... Nc6 {[%clk 0:04:41.6]} 6. Nf3 {[%clk 0:04:54.4]} 6...
Bg4 {[%clk 0:04:37.8]} 7. Bc4 {[%clk 0:04:51.7]} 7... e6 {[%clk 0:04:35.3]} 8.
h3 {[%clk 0:04:50.1]} 8... Bh5 {[%clk 0:04:32.8]} 9. g4 {[%clk 0:04:49.8]} 9...
Bg6 {[%clk 0:04:30.4]} 10. h4 {[%clk 0:04:49.7]} 10... Be4 {[%clk 0:04:24.9]}
11. Bd3 {[%clk 0:04:48.5]} 11... d5 {[%clk 0:04:21.5]} 12. Bxe4 {[%clk
0:04:45.9]} 12... dxe4 {[%clk 0:04:20.4]} 13. Ng5 {[%clk 0:04:45.8]} 13... Qd5
{[%clk 0:04:07.4]} 14. Qe2 {[%clk 0:04:44.2]} 14... h6 {[%clk 0:04:04.4]} 15. c4
{[%clk 0:04:41.8]} 15... Qa5+ {[%clk 0:03:53]} 16. Bd2 {[%clk 0:04:37.9]} 16...
Bb4 {[%clk 0:03:41.1]} 17. Nxe4 {[%clk 0:04:31]} 17... Nxd4 {[%clk 0:03:39.8]}
18. Qd3 {[%clk 0:04:28.4]} 18... O-O-O {[%clk 0:03:33.2]} 19. Bxb4 {[%clk
0:04:16]} 19... Qxb4+ {[%clk 0:03:20.7]} 20. Kf1 {[%clk 0:04:14.5]} 20... Qb2
{[%clk 0:02:59.7]} 21. Kg2 {[%clk 0:03:58.5]} 21... Nxc2 {[%clk 0:02:54.6]} 22.
Qe2 {[%clk 0:03:50.8]} 22... f5 {[%clk 0:02:26.9]} 23. Nc5 {[%clk 0:03:43.4]}
23... Qd4 {[%clk 0:02:09.4]} 24. Qxe6+ {[%clk 0:03:39.4]} 24... Kb8 {[%clk
0:02:05.5]} 25. Na6+ {[%clk 0:03:33.6]} 25... bxa6 {[%clk 0:01:57.5]} 26. Rab1+
{[%clk 0:03:32.8]} 1-0

[Event "Live Chess"]
[Site "Chess.com"]
[Date "2024.06.01"]
[Round "-"]
[White "Delacorta"]
[Black "Mangoalo"]
[Result "1-0"]
[WhiteElo "1401"]
[BlackElo "988"]
[TimeControl "300"]
[EndTime "9:53:06 PDT"]
[Termination "Delacorta won by resignation"]

1. d4 {[%clk 0:04:54.3]} 1... Nc6 {[%clk 0:04:59.9]} 2. Nf3 {[%clk 0:04:52.8]}
2... d5 {[%clk 0:04:58.6]} 3. e3 {[%clk 0:04:52]} 3... Bg4 {[%clk 0:04:56.6]} 4.
h3 {[%clk 0:04:49.1]} 4... Bxf3 {[%clk 0:04:55]} 5. Qxf3 {[%clk 0:04:47.6]} 5...
e6 {[%clk 0:04:54.7]} 6. c4 {[%clk 0:04:45.9]} 6... dxc4 {[%clk 0:04:51.1]} 7.
Bxc4 {[%clk 0:04:44.8]} 7... Nf6 {[%clk 0:04:50]} 8. Nd2 {[%clk 0:04:40.6]} 8...
Bb4 {[%clk 0:04:48.9]} 9. O-O {[%clk 0:04:37.3]} 9... Bxd2 {[%clk 0:04:45.4]}
10. Bxd2 {[%clk 0:04:35.6]} 10... O-O {[%clk 0:04:45.3]} 11. Bc3 {[%clk
0:04:27.2]} 11... a6 {[%clk 0:04:44.6]} 12. Rad1 {[%clk 0:04:24.9]} 12... b5
{[%clk 0:04:43.1]} 13. Bb3 {[%clk 0:04:21]} 13... Ne7 {[%clk 0:04:39.4]} 14. d5
{[%clk 0:04:11.7]} 14... Nexd5 {[%clk 0:04:39.3]} 15. Bxf6 {[%clk 0:04:09.1]}
15... gxf6 {[%clk 0:04:35.9]} 16. Bxd5 {[%clk 0:04:05.4]} 16... exd5 {[%clk
0:04:34.5]} 17. Rxd5 {[%clk 0:03:53.4]} 17... Qe7 {[%clk 0:04:32.3]} 1-0

[Event "Live Chess"]
[Site "Chess.com"]
[Date "2024.06.01"]
[Round "-"]
[White "Mangoalo"]
[Black "Queensandpawns"]
[Result "0-1"]
[WhiteElo "988"]
[BlackElo "2469"]
[TimeControl "300"]
[EndTime "9:53:35 PDT"]
[Termination "Queensandpawns won by resignation"]

1. e4 {[%clk 0:04:58.8]} 1... d5 {[%clk 0:04:59.2]} 2. f4 {[%clk 0:04:58.4]}
2... dxe4 {[%clk 0:04:58.3]} 3. Nc3 {[%clk 0:04:58]} 3... Nf6 {[%clk 0:04:58.2]}
4. g4 {[%clk 0:04:54.4]} 4... Nc6 {[%clk 0:04:58.1]} 5. g5 {[%clk 0:04:52.5]}
5... Bg4 {[%clk 0:04:58]} 6. gxf6 {[%clk 0:04:51.4]} 6... Bxd1 {[%clk
0:04:57.6]} 7. Kxd1 {[%clk 0:04:50.5]} 7... exf6 {[%clk 0:04:57.1]} 8. Nge2
{[%clk 0:04:48.5]} 8... f5 {[%clk 0:04:56.2]} 9. Nd4 {[%clk 0:04:48.4]} 9...
Nxd4 {[%clk 0:04:55.1]} 10. Bb5+ {[%clk 0:04:47.1]} 10... c6 {[%clk 0:04:54.2]}
11. Bxc6+ {[%clk 0:04:45.9]} 11... bxc6 {[%clk 0:04:53.4]} 0-1

[Event "Live Chess"]
[Site "Chess.com"]
[Date "2024.06.01"]
[Round "-"]
[White "seasidecastle27"]
[Black "NottheBishopSacrifice"]
[Result "0-1"]
[WhiteElo "1947"]
[BlackElo "2162"]
[TimeControl "300"]
[EndTime "9:53:37 PDT"]
[Termination "NottheBishopSacrifice won by resignation"]

1. d4 {[%clk 0:04:56.6]} 1... d5 {[%clk 0:04:58.8]} 2. Nf3 {[%clk 0:04:55.8]}
2... Nf6 {[%clk 0:04:57.6]} 3. Bf4 {[%clk 0:04:55]} 3... c5 {[%clk 0:04:56.2]}
4. e3 {[%clk 0:04:53.6]} 4... cxd4 {[%clk 0:04:55.9]} 5. exd4 {[%clk 0:04:52.5]}
5... Nc6 {[%clk 0:04:55.6]} 6. c3 {[%clk 0:04:51.3]} 6... Bg4 {[%clk 0:04:55.2]}
7. Be2 {[%clk 0:04:49.7]} 7... e6 {[%clk 0:04:54.2]} 8. Nbd2 {[%clk 0:04:48.3]}
8... Bd6 {[%clk 0:04:53.7]} 9. Ne5 {[%clk 0:04:46]} 9... Bxe2 {[%clk 0:04:51.8]}
10. Qxe2 {[%clk 0:04:44.7]} 10... Qc7 {[%clk 0:04:51.5]} 11. O-O {[%clk
0:04:38.6]} 11... O-O {[%clk 0:04:49.4]} 12. Bg3 {[%clk 0:04:32.4]} 12... Bxe5
{[%clk 0:04:45.4]} 13. Bxe5 {[%clk 0:04:26.1]} 13... Nxe5 {[%clk 0:04:44.1]} 14.
Qxe5 {[%clk 0:04:24.1]} 14... Qxe5 {[%clk 0:04:43]} 15. dxe5 {[%clk 0:04:23]}
15... Nd7 {[%clk 0:04:42.7]} 16. f4 {[%clk 0:04:21.2]} 16... Rfc8 {[%clk
0:04:41.8]} 17. Rac1 {[%clk 0:04:18.3]} 17... b5 {[%clk 0:04:39.3]} 18. a3
{[%clk 0:04:16.6]} 18... Nb6 {[%clk 0:04:37.9]} 19. Nf3 {[%clk 0:04:05.8]} 19...
Nc4 {[%clk 0:04:36.6]} 20. Rf2 {[%clk 0:04:01.6]} 20... Rab8 {[%clk 0:04:35.9]}
21. Nd4 {[%clk 0:03:58]} 21... a5 {[%clk 0:04:34]} 22. g3 {[%clk 0:03:39.1]}
22... g6 {[%clk 0:04:30.7]} 23. Kg2 {[%clk 0:03:36.7]} 23... h5 {[%clk
0:04:28.9]} 24. Kh3 {[%clk 0:03:33.1]} 24... Kf8 {[%clk 0:04:27.4]} 25. Kh4
{[%clk 0:03:30.9]} 25... Ke7 {[%clk 0:04:26.4]} 26. Re2 {[%clk 0:03:23.9]} 26...
Rb6 {[%clk 0:04:23]} 27. Ra1 {[%clk 0:03:09.6]} 27... Rcb8 {[%clk 0:04:20.7]}
28. Kh3 {[%clk 0:03:04.2]} 28... Kf8 {[%clk 0:04:19]} 29. Kh4 {[%clk 0:03:01.9]}
29... Ke7 {[%clk 0:04:17.6]} 30. Kh3 {[%clk 0:03:00.8]} 30... Kd7 {[%clk
0:04:17.1]} 31. Kh4 {[%clk 0:03:00]} 31... R8b7 {[%clk 0:04:13]} 32. Kh3 {[%clk
0:02:58.6]} 32... b4 {[%clk 0:04:06.4]} 33. axb4 {[%clk 0:02:54.9]} 33... axb4
{[%clk 0:04:05.3]} 34. Ra8 {[%clk 0:02:49.8]} 34... bxc3 {[%clk 0:04:03.9]} 35.
bxc3 {[%clk 0:02:48.1]} 35... Rb1 {[%clk 0:04:00.9]} 36. Rf8 {[%clk 0:02:43.6]}
36... Ke7 {[%clk 0:03:59.4]} 37. Rc8 {[%clk 0:02:40.4]} 37... R7b2 {[%clk
0:03:47.6]} 38. Rxb2 {[%clk 0:02:33.7]} 38... Rxb2 {[%clk 0:03:45.8]} 39. Rc7+
{[%clk 0:02:29.9]} 39... Kf8 {[%clk 0:03:43.7]} 40. Rc8+ {[%clk 0:02:26.8]}
40... Kg7 {[%clk 0:03:42.3]} 41. Rc7 {[%clk 0:02:25.8]} 41... Kf8 {[%clk
0:03:40.8]} 42. Rc8+ {[%clk 0:02:24.4]} 42... Ke7 {[%clk 0:03:40.4]} 43. Rc7+
{[%clk 0:02:23.4]} 43... Ke8 {[%clk 0:03:39.9]} 44. Rc8+ {[%clk 0:02:22.6]}
44... Kd7 {[%clk 0:03:39.1]} 45. Rf8 {[%clk 0:02:21.1]} 45... Ke7 {[%clk
0:03:38.2]} 46. Rc8 {[%clk 0:02:19.6]} 46... Ne3 {[%clk 0:03:36.2]} 47. Rc7+
{[%clk 0:02:14.5]} 47... Kf8 {[%clk 0:03:34.2]} 48. Rc8+ {[%clk 0:02:10.6]}
48... Ke7 {[%clk 0:03:33.1]} 49. Rc7+ {[%clk 0:02:09.7]} 49... Ke8 {[%clk
0:03:32]} 50. Rc8+ {[%clk 0:02:08.6]} 50... Kd7 {[%clk 0:03:31]} 51. Ra8 {[%clk
0:02:07.4]} 51... Ng4 {[%clk 0:03:26.8]} 52. Ra7+ {[%clk 0:02:03.3]} 52... Ke8
{[%clk 0:03:25]} 53. Ra8+ {[%clk 0:02:01.7]} 53... Ke7 {[%clk 0:03:21.7]} 54.
Ra7+ {[%clk 0:01:59.6]} 54... Kf8 {[%clk 0:03:20.6]} 55. Kh4 {[%clk 0:01:57.9]}
55... Rxh2+ {[%clk 0:03:13.3]} 56. Kg5 {[%clk 0:01:56.4]} 56... Rg2 {[%clk
0:03:11.6]} 57. Ra8+ {[%clk 0:01:48]} 57... Kg7 {[%clk 0:03:09]} 58. Ra7 {[%clk
0:01:46.3]} 58... Kf8 {[%clk 0:03:02.3]} 59. Ra8+ {[%clk 0:01:44.3]} 59... Ke7
{[%clk 0:03:01.9]} 60. Ra7+ {[%clk 0:01:43]} 60... Ke8 {[%clk 0:03:01.5]} 61.
Ra8+ {[%clk 0:01:42]} 61... Ke7 {[%clk 0:02:54.8]} 62. Ra7+ {[%clk 0:01:40.7]}
62... Ke8 {[%clk 0:02:54.1]} 63. Ra8+ {[%clk 0:01:39.8]} 63... Kd7 {[%clk
0:02:53.8]} 64. Ra7+ {[%clk 0:01:39]} 64... Kc8 {[%clk 0:02:52.2]} 65. Rxf7
{[%clk 0:01:37.6]} 65... Rxg3 {[%clk 0:02:50.4]} 66. Nxe6 {[%clk 0:01:32.3]}
66... Nxe5+ {[%clk 0:02:48.5]} 67. Kf6 {[%clk 0:01:30.1]} 67... Nxf7 {[%clk
0:02:47.3]} 68. Kxf7 {[%clk 0:01:29]} 68... h4 {[%clk 0:02:46.3]} 69. Nf8 {[%clk
0:01:24.8]} 69... h3 {[%clk 0:02:45.1]} 70. Nxg6 {[%clk 0:01:23.8]} 70... h2
{[%clk 0:02:44.8]} 71. Ne5 {[%clk 0:01:23]} 71... h1=Q {[%clk 0:02:43.2]} 72. f5
{[%clk 0:01:22.3]} 72... Qh7+ {[%clk 0:02:42.6]} 0-1